bitfinex-derivatives/quotes_SOLF0:USTF0_20250712
["timestamp","ask_amount","ask_price","bid_price","bid_amount"]
[1752300636584,3.56962046,162.71,162.7,9.5932]
[1752300638780,3.56962046,162.71,162.7,6.1432]
[1752300638980,3.56962046,162.71,162.7,9.5932]
[1752300639781,3.56962046,162.71,162.7,6.1432]
[1752300640184,3.56962046,162.71,162.7,9.5932]
[1752300643586,0.03962046,162.71,162.7,9.5932]
[1752300647077,181.43,162.77,162.76,9.4212]
[1752300648582,181.43,162.77,162.75,6.18724824]
[1752300648788,3.43,162.76,162.75,0.04574824]
[1752300651488,11.89608721,162.76,162.75,0.04574824]
[1752300651888,3.43,162.75,162.71,3.28]
[1752300652088,3.43,162.73,162.71,3.28]
[1752300652286,3.43,162.73,162.71,6.1429]
[1752300652890,3.43,162.73,162.71,9.4229]
[1752300653089,3.43,162.73,162.72,6.1427]
[1752300653897,3.43,162.73,162.72,9.4227]
[1752300654993,3.43,162.73,162.71,6.143]
[1752300655290,3.43,162.73,162.71,9.423]
[1752300657495,3.43,162.73,162.72,3.28]
[1752300657993,3.43,162.73,162.72,9.4227]
[1752300660604,3.43,162.73,162.69,3.28]
[1752300660801,2.32488721,162.72,162.69,3.28]
[1752300661101,3.43,162.71,162.69,3.28]
[1752300661303,3.43,162.69,162.64,3.28]
[1752300661797,3.43,162.69,162.68,6.1442]
[1752300662392,3.43,162.69,162.67,6.1445]
[1752300662597,2.32488721,162.68,162.67,6.1445]
[1752300662795,5.75488721,162.68,162.67,6.1445]
[1752300663002,3.43,162.67,162.66,3.28]
[1752300663300,3.43,162.67,162.62,3.28]
[1752300663804,3.43,162.67,162.64,9.4255]
[1752300663998,0.04067169,162.66,162.64,9.4255]
[1752300664199,3.43,162.65,162.64,9.4255]
[1752300666200,3.43,162.65,162.63,9.4261]
[1752300666798,3.43,162.65,162.64,3.28]
[1752300668509,3.43,162.65,162.64,9.4257]
[1752300670602,3.43,162.65,162.63,3.28]
[1752300670806,3.43,162.65,162.6,3.28]
[1752300671102,3.43,162.65,162.64,6.1457]
[1752300671307,3.43,162.65,162.64,9.4257]
[1752300673708,0.04067169,162.66,162.65,9.4254]
[1752300674011,3.47067169,162.66,162.65,9.4254]
[1752300677017,3.47067169,162.66,162.65,3.28]
[1752300677510,3.47067169,162.66,162.64,6.1456]
[1752300677707,3.61,162.64,162.6,3.46]
[1752300677905,3.61,162.62,162.6,3.46]
[1752300678599,3.61,162.61,162.6,6.147]
[1752300679204,3.61,162.62,162.6,3.46]
[1752300679806,3.61,162.62,162.6,9.6072]
[1752300680209,3.61,162.62,162.6,3.46]
[1752300680913,3.61,162.61,162.6,3.46]
[1752300682211,3.61,162.61,162.6,9.6072]
[1752300686816,3.61,162.61,162.53,2.32768472]
[1752300687116,3.61,162.61,162.54,3.46]
[1752300687415,0.04045084,162.59,162.54,3.46]
[1752300687615,3.65045084,162.59,162.54,3.46]
[1752300688010,0.04045084,162.59,162.52,5.78768472]
[1752300688309,0.04045084,162.59,162.53,3.46]
[1752300688812,3.65045084,162.59,162.53,3.46]
[1752300689211,3.65045084,162.59,162.58,6.148]
[1752300689408,3.65045084,162.59,162.58,9.608]
[1752300691623,3.65045084,162.59,162.58,3.46]
[1752300691807,3.65045084,162.59,162.51,1.07012715]
[1752300691808,3.61,162.58,162.56,3.46]
[1752300692308,3.61,162.58,162.56,9.6085]
[1752300692707,3.61,162.58,162.56,3.46]
[1752300693012,3.61,162.58,162.57,6.1484]
[1752300693212,3.61,162.58,162.56,3.46]
[1752300694214,3.61,162.58,162.51,2.32768472]
[1752300694420,3.61,162.58,162.57,3.46]
[1752300695120,3.61,162.58,162.57,9.6084]
[1752300696016,3.65045084,162.59,162.58,6.148]
[1752300696220,0.04045084,162.59,162.58,9.608]
[1752300696622,3.65045084,162.59,162.58,9.608]
[1752300704620,3.65045084,162.59,162.57,9.4282]
[1752300704825,3.65045084,162.59,162.58,3.28]
[1752300705626,3.65045084,162.59,162.57,9.4282]
[1752300706626,3.52,162.58,162.56,3.28]
[1752300706825,3.52,162.58,162.55,3.28]
[1752300707129,3.52,162.58,162.56,3.28]
[1752300707429,3.56242045,162.58,162.56,3.28]
[1752300708024,3.52,162.57,162.55,9.4289]
[1752300708230,3.52,162.57,162.55,3.28]
[1752300708627,3.52,162.55,162.45,3.28]
[1752300708932,3.52,162.54,162.46,2.32935261]
[1752300709128,3.52,162.54,162.47,3.28]
[1752300709333,3.52,162.51,162.5,9.4308]
[1752300713438,0.04393523,162.52,162.51,6.1506]
[1752300713634,0.04393523,162.52,162.51,9.4306]
[1752300722639,3.56393523,162.52,162.42,23.55778527]
[1752300722844,3.56393523,162.52,162.47,3.28]
[1752300723945,0.04393523,162.52,162.51,9.4306]
[1752300726045,3.56393523,162.52,162.44,2.33142592]
[1752300726245,3.56393523,162.52,162.45,3.28]
[1752300726444,3.56393523,162.52,162.46,2.33142592]
[1752300726650,3.56393523,162.52,162.51,6.1506]
[1752300726946,3.56393523,162.52,162.51,9.4306]
[1752300728648,0.04393523,162.52,162.51,9.4306]
[1752300735954,3.37,162.55,162.54,9.7295]
[1752300736561,3.37,162.57,162.55,3.58]
[1752300737063,3.37,162.57,162.56,6.1488]
[1752300737768,3.37,162.57,162.55,9.729]
[1752300740065,3.37,162.57,162.55,3.58]
[1752300740461,3.37,162.57,162.54,3.6214761]
[1752300741173,3.37,162.57,162.55,6.1491]
[1752300741366,3.37,162.57,162.54,0.0414761]
[1752300741567,6.82226618,162.57,162.54,0.0414761]
[1752300741765,3.37,162.56,162.54,0.0414761]
[1752300743067,3.37,162.56,162.54,3.6214761]
[1752300743263,3.37,162.56,162.54,0.0414761]
[1752300743468,3.37,162.56,162.55,3.58]
[1752300743773,3.37,162.56,162.55,9.7288]
[1752300745373,3.37,162.58,162.57,3.58]
[1752300745574,3.37,162.58,162.56,9.7284]
[1752300745868,3.37,162.57,162.54,0.0414761]
[1752300746576,9.5187,162.57,162.54,0.0414761]
[1752300746766,4.4923139,162.56,162.54,0.0414761]
[1752300746970,3.37,162.55,162.54,0.0414761]
[1752300747777,3.37,162.55,162.51,3.58]
[1752300748277,6.1493,162.55,162.52,6.1502]
[1752300748474,3.37,162.54,162.52,6.1502]
[1752300748869,3.37,162.54,162.52,9.7302]
[1752300749068,7.88245044,162.54,162.52,9.7302]
[1752300749272,3.37,162.53,162.52,9.7302]
[1752300751680,3.37,162.53,162.47,2.33004376]
[1752300751681,3.37,162.53,162.51,6.1505]
[1752300751977,3.37,162.53,162.51,9.7305]
[1752300752178,4.52194256,162.53,162.51,9.7305]
[1752300752378,6.1493,162.55,162.51,9.7305]
[1752300752379,3.37,162.52,162.51,9.7305]
[1752300756078,3.37,162.52,162.51,6.1505]
[1752300756582,3.37,162.52,162.51,9.7305]
[1752300758983,3.37,162.52,162.51,3.58]
[1752300759183,3.37,162.52,162.49,3.58]
[1752300759782,3.41001815,162.52,162.5,6.151]
[1752300759981,2.37006191,162.52,162.5,6.151]
[1752300760175,3.37,162.51,162.5,6.151]
[1752300761081,3.37,162.51,162.47,3.58]
[1752300761285,3.37,162.51,162.41,721.6288]
[1752300761286,3.37,162.5,162.48,3.58]
[1752300761480,3.37,162.5,162.44,3.58]
[1752300761780,3.37,162.5,162.48,6.1516]
[1752300761986,3.37,162.5,162.49,3.58]
[1752300762683,6.84855903,162.5,162.44,3.58]
[1752300762887,0.04477647,162.51,162.44,3.58]
[1752300762888,3.37,162.47,162.44,3.58]
[1752300763080,3.37,162.47,162.45,6.1527]
[1752300763284,3.40957241,162.47,162.45,9.7327]
[1752300764289,3.40957241,162.47,162.46,9.7325]
[1752300764688,3.37,162.47,162.46,9.7325]
[1752300764886,0.04469974,162.48,162.47,3.31]
[1752300765189,3.36,162.49,162.47,3.31]
[1752300765590,3.40555458,162.49,162.47,3.31]
[1752300765886,3.40555458,162.49,162.48,6.1515]
[1752300766088,0.04555458,162.49,162.48,9.4615]
[1752300769895,7.87851527,162.55,162.48,2.33004376]
[1752300770192,3.36,162.54,162.49,3.31]
[1752300770991,3.36,162.54,162.53,6.1496]
[1752300771188,3.36,162.54,162.53,9.4596]
[1752300771590,4.51851527,162.57,162.54,6.1494]
[1752300771785,0.04680706,162.55,162.54,9.4594]
[1752300775993,4.51851527,162.58,162.57,9.4584]
[1752300776501,3.36,162.59,162.58,3.31]
[1752300776798,4.51851527,162.6,162.59,3.31]
[1752300776799,3.36,162.6,162.59,3.31]
[1752300777199,3.36,162.6,162.59,9.4576]
[1752300778992,3.36,162.62,162.61,3.31]
[1752300779399,5.68934311,162.62,162.58,0.04069223]
[1752300779593,3.36,162.61,162.58,3.35069223]
[1752300780099,3.36,162.61,162.59,3.31]
[1752300782095,3.36,162.59,162.58,0.04069223]
[1752300782999,9.5076,162.59,162.58,0.04069223]
[1752300787699,3.36,162.59,162.58,0.04069223]
[1752300787896,3.36,162.59,162.58,3.35069223]
[1752300788502,3.36,162.59,162.58,0.04069223]
[1752300788695,9.5076,162.59,162.58,0.04069223]
[1752300788902,3.36,162.59,162.58,0.04069223]
[1752300789100,3.36,162.59,162.58,3.35069223]
[1752300790194,3.36,162.6,162.58,3.35069223]
[1752300790403,3.36,162.61,162.59,3.31]
[1752300790594,3.36,162.6,162.59,3.31]
[1752300791305,3.36,162.6,162.58,0.04069223]
[1752300791804,3.36,162.59,162.58,0.04069223]
[1752300792901,9.5076,162.59,162.58,0.04069223]
[1752300793100,3.36,162.59,162.55,3.31]
[1752300793405,3.36,162.57,162.55,3.31]
[1752300794202,3.36,162.57,162.55,9.4591]
[1752300794608,3.36,162.56,162.54,3.35376518]
[1752300794808,3.36,162.56,162.54,9.50316518]
[1752300795807,3.36,162.56,162.55,3.58]
[1752300797711,6.1488,162.56,162.54,3.62376518]
[1752300797910,3.54,162.55,162.54,3.62376518]
[1752300798412,9.6891,162.55,162.54,0.04376518]
[1752300798911,9.6891,162.55,162.54,3.62376518]
[1752300800716,9.6891,162.55,162.54,0.04376518]
[1752300802413,6.1502,162.53,162.51,3.58]
[1752300802616,3.54,162.52,162.51,3.58]
[1752300805520,3.54,162.53,162.51,3.58]
[1752300806221,3.54,162.54,162.51,3.58]
[1752300806824,3.54,162.54,162.52,6.1503]
[1752300807015,3.54,162.54,162.53,3.58]
[1752300807917,6.1495,162.54,162.53,3.58]
[1752300808123,9.6895,162.54,162.53,3.58]
[1752300809518,9.6895,162.54,162.5,6.1509]
[1752300809822,3.54,162.53,162.52,3.58]
[1752300810123,3.54,162.53,162.51,3.58]
[1752300810322,9.69,162.53,162.51,3.58]
[1752300810523,3.54,162.52,162.51,3.58]
[1752300811424,9.6903,162.52,162.51,3.58]
[1752300813323,9.6903,162.52,162.5,3.58]
[1752300813523,3.54,162.51,162.5,3.58]
[1752300816620,6.1506,162.51,162.5,3.58]
[1752300816826,9.6906,162.51,162.5,3.58]
[1752300817425,6.151,162.5,162.49,0.04351343]
[1752300817627,9.691,162.5,162.49,0.04351343]
[1752300822427,9.691,162.5,162.49,3.62351343]
[1752300823125,9.691,162.5,162.49,0.04351343]
[1752300823332,9.691,162.5,162.46,3.58]
[1752300823333,6.1518,162.48,162.46,3.58]
[1752300823530,3.54,162.47,162.46,3.58]
[1752300824730,6.19079824,162.48,162.46,3.58]
[1752300824924,9.54079824,162.48,162.46,3.58]
[1752300825325,0.03899824,162.48,162.46,3.58]
[1752300825533,3.35,162.47,162.46,9.7325]
[1752300825727,3.38899824,162.48,162.47,3.42]
[1752300826925,0.03899824,162.48,162.47,9.5722]
[1752300827126,3.35,162.52,162.47,2.32948072]
[1752300827432,3.35,162.52,162.48,3.42]
[1752300827932,3.35,162.52,162.49,6.151]
[1752300828127,3.35,162.52,162.5,3.42]
[1752300828334,3.35,162.51,162.41,3.42]
[1752300828530,3.35,162.5,162.46,3.42]
[1752300828937,3.39201415,162.5,162.46,3.42]
[1752300829235,6.1518,162.49,162.47,3.42]
[1752300829437,3.35,162.48,162.47,3.42]
[1752300829833,9.5018,162.48,162.47,3.42]
[1752300830532,9.5018,162.48,162.34,709.7]
[1752300830533,3.35,162.48,162.38,3.42]
[1752300830834,3.35,162.48,162.39,3.42]
[1752300831036,0.03887666,162.45,162.39,3.42]
[1752300831237,3.38887666,162.45,162.39,3.42]
[1752300831734,3.38887666,162.45,162.42,6.1538]
[1752300831935,3.38887666,162.45,162.43,3.42]
[1752300832337,3.38887666,162.45,162.43,9.5735]
[1752300832536,3.38887666,162.45,162.44,3.42]
[1752300833333,0.03887666,162.45,162.44,9.5733]
[1752300833539,3.35,162.51,162.44,5.75250104]
[1752300833735,3.35,162.51,162.48,6.1516]
[1752300834036,3.35,162.5,162.48,6.1516]
[1752300834632,3.35,162.5,162.49,3.42]
[1752300836934,3.35,162.5,162.48,3.42]
[1752300838740,6.1507,162.51,162.48,3.42]
[1752300839038,3.35,162.49,162.48,3.42]
[1752300842134,3.35,162.49,162.48,9.5718]
[1752300842542,3.35,162.52,162.49,3.42]
[1752300843143,3.35,162.51,162.49,3.42]
[1752300844240,3.35,162.51,162.49,6.1514]
[1752300844432,3.35,162.51,162.5,3.42]
[1752300844837,3.35,162.53,162.51,3.42]
[1752300845040,3.35,162.52,162.51,3.42]
[1752300846343,3.35,162.52,162.5,0.04134879]
[1752300846643,3.35,162.52,162.5,3.46134879]
[1752300847743,3.35,162.52,162.5,6.19224879]
[1752300847941,3.35,162.52,162.51,3.42]
[1752300850043,6.84201145,162.56,162.51,3.42]
[1752300850237,3.35,162.55,162.51,3.42]
[1752300850435,3.35,162.55,162.51,2.3312598]
[1752300850743,4.51075165,162.56,162.53,3.42]
[1752300850944,3.35,162.54,162.53,3.42]
[1752300851540,3.35,162.53,162.51,0.04303225]
[1752300852351,3.35,162.52,162.51,0.04303225]
[1752300852945,9.5003,162.52,162.51,0.04303225]
[1752300853546,14.01105165,162.52,162.51,0.04303225]
[1752300853744,9.5003,162.52,162.51,0.04303225]
[1752300854047,14.01105165,162.52,162.51,0.04303225]
[1752300854242,9.5003,162.52,162.51,0.04303225]
[1752300854439,7.86075165,162.52,162.51,0.04303225]
[1752300854640,7.86574708,162.52,162.51,0.04303225]
[1752300855045,7.86574708,162.52,162.51,3.35303225]
[1752300855453,14.01604708,162.52,162.51,3.35303225]
[1752300855752,9.5003,162.52,162.51,3.35303225]
[1752300855952,14.01604708,162.52,162.51,3.35303225]
[1752300856254,9.5003,162.52,162.51,3.35303225]
[1752300856448,14.01604708,162.52,162.51,3.35303225]
[1752300856751,9.5003,162.52,162.51,3.35303225]
[1752300856951,14.01604708,162.52,162.51,3.35303225]
[1752300857153,9.5003,162.52,162.51,3.35303225]
[1752300857354,14.01604708,162.52,162.51,3.35303225]
[1752300857548,9.5003,162.52,162.51,3.35303225]
[1752300858050,7.80574708,162.53,162.51,3.35303225]
[1752300858256,3.29,162.53,162.51,3.35303225]
[1752300858755,3.29,162.54,162.51,3.35303225]
[1752300859149,3.29,162.53,162.51,3.35303225]
[1752300859857,3.29,162.53,162.52,3.31]
[1752300870366,4.51866812,162.55,162.52,3.31]
[1752300870561,3.29,162.56,162.52,3.31]
[1752300870764,3.29,162.55,162.52,3.31]
[1752300871061,3.29,162.55,162.53,6.1497]
[1752300871263,3.29,162.55,162.54,3.31]
[1752300874668,3.29,162.54,162.52,3.31]
[1752300877166,3.29,162.54,162.53,3.31]
[1752300878170,4.55595551,162.54,162.53,3.31]
[1752300878372,7.84595551,162.54,162.53,3.31]
[1752300880172,3.29,162.54,162.53,3.31]
[1752300881574,9.4395,162.54,162.53,3.31]
[1752300883566,13.99716667,162.54,162.53,3.31]
[1752300883773,9.4395,162.54,162.53,3.31]
[1752300884176,13.99716667,162.54,162.53,3.31]
[1752300888376,7.84766667,162.54,162.53,3.31]
[1752300897994,4.55766667,162.54,162.53,9.4599]
[1752300898292,3.38,162.56,162.53,4.80113704]
[1752300898486,4.5643171,162.55,162.54,7.64063704]
[1752300898989,3.38,162.57,162.54,1.49113704]
[1752300899192,4.56547683,162.56,162.55,9.4191]
[1752300899895,7.94547683,162.56,162.55,3.27]
[1752300900692,7.94547683,162.56,162.55,9.4191]
[1752300900896,3.38,162.56,162.55,3.27]
[1752300901996,3.38,162.57,162.55,3.27]
[1752300902700,536.4957536,162.61,162.56,1.49113704]
[1752300902899,4.5652734,162.6,162.58,1.49113704]
[1752300903098,3.38,162.6,162.59,3.27]
[1752300903395,7.94439961,162.6,162.59,3.27]
[1752300904398,3.38,162.6,162.59,3.27]
[1752300905390,0.04158152,162.61,162.59,3.27]
[1752300905597,3.42158152,162.61,162.59,3.27]
[1752300906000,0.04158152,162.61,162.59,9.4176]
[1752300906190,0.04158152,162.61,162.6,3.27]
[1752300906599,0.04158152,162.61,162.6,9.4172]
[1752300908197,0.04158152,162.61,162.6,11.74585216]
[1752300909108,3.38,162.65,162.62,6.1462]
[1752300909404,3.38,162.64,162.63,3.27]
[1752300909599,3.38,162.65,162.63,3.27]
[1752300909800,3.38,162.65,162.64,3.27]
[1752300910001,3.38,162.67,162.64,5.59865216]
[1752300910203,3.38,162.67,162.65,3.27]
[1752300911301,3.38,162.66,162.65,3.27]
[1752300914500,3.38,162.67,162.65,3.27]
[1752300914708,3.62,162.68,162.65,3.27]
[1752300915103,3.62,162.68,162.65,9.4153]
[1752300915406,3.62,162.69,162.66,3.34]
[1752300915900,86.16,162.66,162.65,6.1454]
[1752300917811,86.16,162.66,162.65,9.4854]
[1752300919318,3.62,162.65,162.64,3.38082038]
[1752300919514,3.62,162.65,162.64,0.04082038]
[1752300920413,2.32865216,162.65,162.6,3.34]
[1752300920619,3.62,162.64,162.58,3.34]
[1752300921507,6.1467,162.62,162.59,0.03887071]
[1752300921712,3.62,162.61,162.59,3.37887071]
[1752300923621,9.767,162.61,162.59,0.03887071]
[1752300923815,3.62,162.6,162.59,0.03887071]
[1752300924618,3.62,162.6,162.59,3.37887071]
[1752300925820,3.62,162.6,162.59,0.03887071]
[1752300926316,6.1472,162.6,162.59,0.03887071]
[1752300926516,3.62,162.6,162.54,3.34]
[1752300926914,3.62,162.58,162.55,3.34]
[1752300927319,3.62,162.58,162.54,3.34]
[1752300928219,3.62,162.57,162.54,3.34]
[1752300929922,3.62,162.56,162.53,3.34]
[1752300931521,9.7689,162.56,162.53,3.34]
[1752300931711,3.62,162.55,162.52,3.34]
[1752300931915,3.62,162.54,162.52,3.34]
[1752300932318,3.62,162.54,162.53,3.34]
[1752300933317,3.62,162.54,162.5,3.34]
[1752300933920,3.6672471,162.54,162.51,6.1505]
[1752300934123,3.6672471,162.54,162.5,3.34]
[1752300934624,0.0472471,162.54,162.49,2.3301497]
[1752300934817,3.62,162.53,162.49,2.3301497]
[1752300935017,3.62,162.53,162.51,6.1504]
[1752300935419,3.62,162.53,162.52,3.34]
[1752300936820,3.62,162.53,162.51,9.4904]
[1752300937021,3.62,162.53,162.51,3.34]
[1752300937224,3.62,162.53,162.49,8.4814497]
[1752300937423,3.62,162.53,162.5,3.34]
[1752300938834,3.62,162.53,162.49,11.8214497]
[1752300939037,6.1501,162.53,162.5,3.34]
[1752300939330,86.0,162.5,162.49,3.34]
[1752300939532,89.62,162.5,162.49,9.4914]
[1752300940225,89.62,162.5,162.49,3.34]
[1752300940835,89.62,162.5,162.49,9.4914]
[1752300941227,86.0,162.5,162.49,9.4914]
[1752300941935,86.0,162.5,162.49,11.8215497]
[1752300943635,3.6672471,162.54,162.5,3.34]
[1752300943837,3.62,162.53,162.52,3.34]
[1752300944337,3.62,162.53,162.52,9.4901]
[1752300945436,3.62,162.53,162.52,9.5401]
[1752300955041,3.62,162.53,162.51,6.1505]
[1752300955241,3.62,162.53,162.51,9.5405]
[1752300960445,3.62,162.53,162.52,6.1503]
[1752300960645,3.62,162.53,162.52,9.5403]
[1752300962044,0.0472471,162.54,162.53,6.1499]
[1752300962249,3.39,162.56,162.53,3.39]
[1752300962543,3.39,162.6,162.54,2.32987976]
[1752300962745,3.39,162.6,162.56,3.39]
[1752300962947,1.49068348,162.6,162.56,4.88068348]
[1752300963140,3.39,162.59,162.57,9.538]
[1752300963339,3.39,162.59,162.56,4.92013914]
[1752300964241,3.39,162.59,162.56,11.06863914]
[1752300964847,3.39,162.59,162.56,9.57795566]
[1752300966048,3.39,162.59,162.56,0.03945566]
[1752300966746,9.5377,162.59,162.56,0.03945566]
[1752300966948,3.39,162.57,162.51,3.39]
[1752300967154,3.39,162.56,162.51,3.39]
[1752300968153,3.39,162.56,162.52,6.15]
[1752300968354,3.39,162.56,162.52,3.39]
[1752300968652,3.39,162.56,162.53,6.1499]
[1752300969952,3.39,162.56,162.52,9.5402]
[1752300972452,3.39,162.55,162.52,9.5402]
[1752300973157,3.39,162.55,162.53,9.5398]
[1752300975458,3.39,162.55,162.52,9.5502]
[1752300978058,3.39,162.55,162.52,6.1502]
[1752300979956,3.39,162.55,162.53,6.1499]
[1752300981164,3.39,162.55,162.52,9.5501]
[1752300981359,3.39,162.55,162.5,2.32922563]
[1752300981360,3.39,162.55,162.51,3.4]
[1752300981556,6.1502,162.53,162.47,3.4]
[1752300981761,3.48,162.52,162.47,3.4]
[1752300981962,3.48,162.52,162.48,3.4]
[1752300982662,3.48,162.52,162.49,6.1512]
[1752300983266,3.48,162.52,162.48,9.5516]
[1752300983656,6.1503,162.52,162.48,9.5516]
[1752300983964,3.48,162.51,162.47,9.5521]
[1752300984359,9.631,162.51,162.47,3.4]
[1752300984558,3.48,162.5,162.44,2.32922563]
[1752300985058,3.48,162.49,162.47,6.1521]
[1752300985360,3.48,162.49,162.44,3.4]
[1752300985557,3.48,162.49,162.45,2.33214387]
[1752300985754,3.48,162.49,162.46,6.1525]
[1752300985958,3.48,162.49,162.47,3.4]
[1752300986663,3.48,162.51,162.45,2.33214387]
[1752300986861,3.48,162.51,162.48,3.4]
[1752300987063,3.48,162.51,162.48,9.5515]
[1752300987262,3.48,162.51,162.49,3.4]
[1752300989663,3.48,162.51,162.49,9.5513]
[1752300989864,3.48,162.51,162.49,3.4]
[1752300992567,3.48,162.5,162.43,5.73174659]
[1752300992760,3.48,162.5,162.44,3.4]
[1752300993161,6.1511,162.5,162.45,6.1528]
[1752300993461,3.48,162.49,162.46,3.4]
[1752300995756,3.48,162.49,162.46,9.5525]
[1752300995966,3.48,162.49,162.46,6.1525]
[1752300996769,3.48,162.49,162.46,9.5525]
[1752300996964,3.48,162.49,162.46,3.4]
[1752300997165,3.48,162.49,162.45,9.5528]
[1752300998066,3.48,162.48,162.45,9.5528]
[1752300999566,3.48,162.48,162.46,9.5524]
[1752301000464,5.1230415,162.56,162.48,3.4]
[1752301000465,3.48,162.5,162.48,3.4]
[1752301000669,3.48,162.49,162.47,3.4]
[1752301000968,3.48,162.5,162.48,6.1515]
[1752301001169,3.48,162.54,162.49,3.4]
[1752301001764,3.48,162.54,162.51,3.4]
[1752301002366,3.48,162.54,162.51,9.5506]
[1752301004274,3.48,162.54,162.51,3.4]
[1752301004472,3.48,162.54,162.5,3.4]
[1752301004773,6.1498,162.54,162.49,8.48197217]
[1752301004987,3.31,162.53,162.49,9.5712]
[1752301006076,3.31,162.52,162.48,6.1517]
[1752301006270,3.31,162.52,162.46,3.42]
[1752301007274,3.31,162.52,162.48,6.1516]
[1752301007574,9.4603,162.52,162.48,6.1516]
[1752301007774,3.31,162.51,162.48,6.1516]
[1752301009876,3.31,162.51,162.48,3.42]
[1752301010077,3.31,162.51,162.49,3.42]
[1752301010472,3.31,162.51,162.49,9.5711]
[1752301011270,3.31,162.51,162.49,3.42]
[1752301011469,3.31,162.51,162.48,9.5716]
[1752301012469,3.31,162.51,162.47,9.572]
[1752301013080,9.4607,162.51,162.47,9.572]
[1752301013381,3.31,162.5,162.47,9.572]
[1752301014183,3.31,162.5,162.48,6.1516]
[1752301014476,3.31,162.5,162.48,9.5716]
[1752301015678,3.31,162.5,162.48,6.1516]
[1752301015978,3.31,162.5,162.43,2.33077217]
[1752301016281,5.64077217,162.5,162.44,3.42]
[1752301016583,3.31,162.49,162.45,3.42]
[1752301017176,3.31,162.49,162.44,3.42]
[1752301017474,4.52610345,162.49,162.42,3.42]
[1752301017680,3.31,162.48,162.42,3.42]
[1752301018277,9.462,162.48,162.44,6.1532]
[1752301018472,3.31,162.47,162.44,6.1532]
[1752301019382,9.4622,162.47,162.44,6.1532]
[1752301019584,3.31,162.46,162.44,6.1532]
[1752301019779,3.31,162.46,162.43,6.1535]
[1752301019987,9.4627,162.46,162.43,6.1535]
[1752301020282,3.31,162.45,162.43,6.1535]
[1752301020784,7.83835901,162.5,162.43,3.42]
[1752301020980,5.1230415,162.52,162.43,3.42]
[1752301020981,6.85913118,162.49,162.43,3.42]
[1752301021185,3.31,162.47,162.44,6.1532]
[1752301021482,3.31,162.47,162.44,3.42]
[1752301021674,4.52835901,162.48,162.42,3.42]
[1752301021983,3.31,162.46,162.42,3.42]
[1752301022374,4.53096751,162.49,162.42,3.42]
[1752301022579,3.31,162.46,162.42,3.42]
[1752301023381,3.31,162.46,162.43,2.33077217]
[1752301023579,3.31,162.46,162.44,3.42]
[1752301024082,3.31,162.46,162.45,6.1529]
[1752301024286,3.31,162.49,162.47,3.42]
[1752301025074,3.31,162.49,162.47,9.5721]
[1752301025283,3.31,162.48,162.47,9.5721]